{"text_format":"3","workbook":"xlsx","n_sheets":6,"sheets":["Jurnal de apeluri vânzări","Informații de contact clienți","Anterior apelării","Prima apelare","Informații despre vânzări","Urmărire"],"not_rendered":{"defined_names":14},"read":"whole","date_system":"1900"}

{"sheet":"Jurnal de apeluri vânzări","index":0,"n_rows":13,"n_cols":7,"rows_kept":13}
[null," Numele firmei"]
[null,"Jurnal de apeluri vânzări"]
[null,"Apel nr.","Client","Firmă","Dată","Oră","Note"]
[null,1,"Andrei Pescariu",{"$f":"IF(JurnalApeluriVânzări[[#This Row],[Client]]=\"\",\"\",IFERROR(VLOOKUP(JurnalApeluriVânzări[[#This Row],[Client]],Informațiidecontactclienți[],2,0),\"Not Found\"))","v":"Proseware, Inc."},{"$f":"TODAY()-5","v":"2016-10-14"},"08:30:00"]
[null,2,"Iustin Munteanu",{"$f":"IF(JurnalApeluriVânzări[[#This Row],[Client]]=\"\",\"\",IFERROR(VLOOKUP(JurnalApeluriVânzări[[#This Row],[Client]],Informațiidecontactclienți[],2,0),\"Not Found\"))","v":"Litware, Inc."},{"$f":"TODAY()-5","v":"2016-10-14"},"09:00:00"]
[null,3,"Alexandra Dobre",{"$f":"IF(JurnalApeluriVânzări[[#This Row],[Client]]=\"\",\"\",IFERROR(VLOOKUP(JurnalApeluriVânzări[[#This Row],[Client]],Informațiidecontactclienți[],2,0),\"Not Found\"))","v":"Northwind Traders"},"2016-10-14","09:30:00"]
[null,4,"Emil Antonescu",{"$f":"IF(JurnalApeluriVânzări[[#This Row],[Client]]=\"\",\"\",IFERROR(VLOOKUP(JurnalApeluriVânzări[[#This Row],[Client]],Informațiidecontactclienți[],2,0),\"Not Found\"))","v":"Lucerne Publishing"},"2016-10-14","10:00:00"]
[null,5,"Vasile Nica",{"$f":"IF(JurnalApeluriVânzări[[#This Row],[Client]]=\"\",\"\",IFERROR(VLOOKUP(JurnalApeluriVânzări[[#This Row],[Client]],Informațiidecontactclienți[],2,0),\"Not Found\"))","v":"Margie's Travel"},"2016-10-14","10:30:00"]
[null,6,"Andrei Pescariu",{"$f":"IF(JurnalApeluriVânzări[[#This Row],[Client]]=\"\",\"\",IFERROR(VLOOKUP(JurnalApeluriVânzări[[#This Row],[Client]],Informațiidecontactclienți[],2,0),\"Not Found\"))","v":"Proseware, Inc."},{"$f":"TODAY()-3","v":"2016-10-16"},"11:00:00"]
[null,7,"Iustin Munteanu",{"$f":"IF(JurnalApeluriVânzări[[#This Row],[Client]]=\"\",\"\",IFERROR(VLOOKUP(JurnalApeluriVânzări[[#This Row],[Client]],Informațiidecontactclienți[],2,0),\"Not Found\"))","v":"Litware, Inc."},{"$f":"TODAY()-3","v":"2016-10-16"},"11:30:00"]
[null,8,"Andrei Pescariu",{"$f":"IF(JurnalApeluriVânzări[[#This Row],[Client]]=\"\",\"\",IFERROR(VLOOKUP(JurnalApeluriVânzări[[#This Row],[Client]],Informațiidecontactclienți[],2,0),\"Not Found\"))","v":"Proseware, Inc."},{"$f":"TODAY()-1","v":"2016-10-18"},"12:00:00"]
[null,9,"Vasile Nica",{"$f":"IF(JurnalApeluriVânzări[[#This Row],[Client]]=\"\",\"\",IFERROR(VLOOKUP(JurnalApeluriVânzări[[#This Row],[Client]],Informațiidecontactclienți[],2,0),\"Not Found\"))","v":"Margie's Travel"},{"$f":"TODAY()-1","v":"2016-10-18"},"12:30:00"]
[null,10,"Vasile Nica",{"$f":"IF(JurnalApeluriVânzări[[#This Row],[Client]]=\"\",\"\",IFERROR(VLOOKUP(JurnalApeluriVânzări[[#This Row],[Client]],Informațiidecontactclienți[],2,0),\"Not Found\"))","v":"Margie's Travel"},{"$f":"TODAY()","v":"2016-10-19"},"13:00:00"]

{"sheet":"Informații de contact clienți","index":1,"n_rows":8,"n_cols":8,"rows_kept":8}
[null,{"$f":"NumeFirmă","v":" Numele firmei"}]
[null,"Informații de contact client"]
[null,"Nume client","Numele firmei","Adresă","Localitate, Cod poștal","Telefon principal","Telefon secundar","E-mail"]
[null,"Iustin Munteanu","Litware, Inc.","Str. Centrală, 100","Botoșani, BT 123456","0123 456 789","0678 901 234","iustin@litwareinc.com"]
[null,"Emil Antonescu","Lucerne Publishing","Strada Florilor, 567","Sibiu, SB 23456","0234 567 890","0789 012 345","emil@lucernepublishing.com"]
[null,"Vasile Nica","Margie's Travel","Strada Castanilor, 987","Mangalia, CT, 34567","0345 678 901","0890 123 456","vasile@margiestravel.com"]
[null,"Alexandra Dobre","Northwind Traders","Strada Plopilor, 890","Bicaz, NT 45678","0456 789 012","0901 234 567","alexandra@northwindtraders.com"]
[null,"Andrei Pescariu","Proseware, Inc.","Bulevardul Fagului, 123","Brașov, BV 56789","0567 890 123","0987 654 321","andrei@proseware.com"]

{"sheet":"Anterior apelării","index":2,"n_rows":13,"n_cols":3,"rows_kept":13}
[null,{"$f":"NumeFirmă","v":" Numele firmei"}]
[null,"Listă de verificare apeluri de vânzări"]
[null,"Casetă de selectare","Anterior apelării"]
[null,null,"Revizuiți istoricul clientului"]
[null,null,"Revizuiți istoricul angajatorului clientului"]
[null,null,"Revizuiți prioritățile și strategia de vânzări"]
[null,null,"Adăugare element"]
[null,null,"Adăugare element"]
[null,null,"Adăugare element"]
[null,null,"Adăugare element"]
[null,null,"Adăugare element"]
[null,null,"Adăugare element"]
[null,null,"Adăugare element"]

{"sheet":"Prima apelare","index":3,"n_rows":13,"n_cols":3,"rows_kept":13}
[null,{"$f":"NumeFirmă","v":" Numele firmei"}]
[null,"Listă de verificare apeluri de vânzări"]
[null,"Casetă de selectare","Primul apel"]
[null,null,"Direcționați apelul spre persoana potrivită"]
[null,null,"Prezentare clară"]
[null,null,"Adăugare element"]
[null,null,"Adăugare element"]
[null,null,"Adăugare element"]
[null,null,"Adăugare element"]
[null,null,"Adăugare element"]
[null,null,"Adăugare element"]
[null,null,"Adăugare element"]
[null,null,"Adăugare element"]

{"sheet":"Informații despre vânzări","index":4,"n_rows":13,"n_cols":3,"rows_kept":13}
[null,{"$f":"NumeFirmă","v":" Numele firmei"}]
[null,"Listă de verificare apeluri de vânzări"]
[null,"Casetă de selectare","Informații despre vânzări"]
[null,null,"Prezentare clară și convingătoare a produsului/serviciului"]
[null,null,"Acoperiți toate elementele de bază"]
[null,null,"Menționați prezența web (de exemplu, site-ul web, rețelele sociale)"]
[null,null,"Adăugare element"]
[null,null,"Adăugare element"]
[null,null,"Adăugare element"]
[null,null,"Adăugare element"]
[null,null,"Adăugare element"]
[null,null,"Adăugare element"]
[null,null,"Adăugare element"]

{"sheet":"Urmărire","index":5,"n_rows":13,"n_cols":3,"rows_kept":13}
[null,{"$f":"NumeFirmă","v":" Numele firmei"}]
[null,"Listă de verificare apeluri de vânzări"]
[null,"Casetă de selectare","Informații urmărire"]
[null,null,"Informații de contact client"]
[null,null,"Informații personale client"]
[null,null,"Preferințe client"]
[null,null,"Contact replanificat?"]
[null,null,"Vânzare efectuată?"]
[null,null,"Adăugare element"]
[null,null,"Adăugare element"]
[null,null,"Adăugare element"]
[null,null,"Adăugare element"]
[null,null,"Adăugare element"]